bitfinex/quotes_SOLUSD_20260305
["timestamp","ask_amount","ask_price","bid_price","bid_amount"]
[1772715269134,0.67894196,92.059,92.012,38.03851671]
[1772715269656,0.67894196,92.057,92.014,38.03768991]
[1772715269831,0.67894196,92.057,92.015,0.68795305]
[1772715271447,4.98885057,92.06,92.015,0.68795305]
[1772715271448,0.67894196,92.071,92.016,0.68795305]
[1772715271644,0.67894196,92.071,92.017,38.03644978]
[1772715271851,0.67894196,92.071,92.019,0.68795305]
[1772715272538,0.67894196,92.099,92.022,0.68795305]
[1772715272741,0.1,92.13,92.021,0.28432314]
[1772715272742,0.67894196,92.119,92.028,0.68795305]
[1772715272959,0.67894196,92.119,92.031,0.68795305]
[1772715273139,0.67894196,92.099,92.034,0.68795305]
[1772715274061,0.67894196,92.097,92.037,0.68795305]
[1772715276170,0.67894196,92.095,92.039,0.68795305]
[1772715278378,0.67894196,92.093,92.041,0.68795305]
[1772715279273,0.67894196,92.093,92.042,34.8]
[1772715279483,0.67894196,92.093,92.043,0.68795305]
[1772715280775,10.85870651,92.092,92.044,38.02529224]
[1772715280980,0.67894196,92.091,92.045,0.68795305]
[1772715282256,0.67894196,92.091,92.046,34.8]
[1772715282570,0.67894196,92.091,92.047,0.68795305]
[1772715283882,27.13909922,92.119,92.049,0.68795305]
[1772715284081,0.67894196,92.117,92.055,0.68795305]
[1772715284380,10.75671416,92.14,92.055,0.68795305]
[1772715284381,5.76786359,92.14,92.055,0.68795305]
[1772715284571,0.1,92.14,92.057,0.83011462]
[1772715284878,0.1,92.14,92.058,0.97227619]
[1772715285176,0.1,92.14,92.061,0.68795305]
[1772715285379,0.1,92.14,92.063,0.97227619]
[1772715285565,0.1,92.14,92.069,0.68795305]
[1772715285770,0.1,92.14,92.072,0.68795305]
[1772715285976,0.1,92.14,92.074,0.68795305]
[1772715286289,0.1,92.14,92.075,0.68795305]
[1772715286973,0.29995735,92.129,92.075,0.68795305]
[1772715287175,0.29995735,92.129,92.067,3.69383402]
[1772715287176,0.29995735,92.129,92.076,0.68795305]
[1772715287586,0.29995735,92.137,92.081,0.68795305]
[1772715287773,0.1,92.14,92.081,0.68795305]
[1772715288181,0.29959288,92.138,92.081,0.68795305]
[1772715290090,10.85340308,92.137,92.086,0.68173906]
[1772715290490,0.29852883,92.129,92.086,0.68173906]
[1772715292172,0.29852883,92.129,92.088,0.68173906]
[1772715292379,0.29852883,92.129,92.09,0.68173906]
[1772715293384,10.85446335,92.128,92.09,0.68173906]
[1772715293586,0.1,92.13,92.093,0.68173906]
[1772715293998,0.29716803,92.129,92.093,0.68173906]
[1772715294182,0.29716803,92.128,92.094,11.54020975]
[1772715294388,0.29716803,92.128,92.094,10.85847069]
[1772715294585,0.29716803,92.128,92.089,10.85905258]
[1772715295300,0.29716803,92.128,92.089,11.54079164]
[1772715295499,10.85458117,92.127,92.089,11.54079164]
[1772715295704,0.29683671,92.126,92.089,11.54079164]
[1772715295901,0.29683671,92.126,92.09,0.68173906]
[1772715296199,10.85458117,92.127,92.09,0.68173906]
[1772715296788,0.1,92.13,92.09,0.68173906]
[1772715296992,11.24969871,92.13,92.09,0.68173906]
[1772715297384,0.39538356,92.13,92.09,0.68173906]
[1772715297803,0.39538356,92.13,92.092,0.68173906]
[1772715298902,0.29476571,92.128,92.092,0.68173906]
[1772715300100,10.85458117,92.127,92.094,0.68173906]
[1772715300398,0.29476571,92.128,92.094,0.68173906]
[1772715301507,0.1,92.13,92.094,0.68173906]
[1772715302190,0.1,92.13,92.096,0.68173906]
[1772715302610,0.29308524,92.129,92.096,0.68173906]
[1772715302919,0.1,92.13,92.096,0.68173906]
[1772715304016,0.29335391,92.166,92.099,0.68173906]
[1772715304203,0.1,92.17,92.104,0.68173906]
[1772715304417,0.1,92.17,92.107,0.68173906]
[1772715305126,0.1,92.17,92.109,0.68173906]
[1772715305413,0.29306257,92.169,92.109,0.68173906]
[1772715305786,0.2927776,92.168,92.109,0.68173906]
[1772715306910,10.84987034,92.167,92.111,0.68173906]
[1772715307105,0.1,92.17,92.112,0.68173906]
[1772715307407,10.8496349,92.169,92.112,0.68173906]
[1772715307607,0.29333233,92.168,92.112,0.68173906]
[1772715308883,0.2927639,92.166,92.114,0.68173906]
[1772715309309,0.2927639,92.166,92.116,0.68173906]
[1772715309706,0.2927639,92.165,92.116,0.68173906]
[1772715309894,0.29248834,92.149,92.108,0.68173906]
[1772715310098,0.29248834,92.139,92.1,0.68173906]
[1772715310792,10.85328528,92.138,92.1,11.53944208]
[1772715310993,0.29221215,92.137,92.1,11.53944208]
[1772715311204,0.29221215,92.136,92.096,10.85821232]
[1772715311598,0.29221215,92.136,92.097,0.68173906]
[1772715314190,10.85363868,92.135,92.098,10.85799908]
[1772715314508,10.85363868,92.135,92.099,0.68173906]
[1772715314808,0.29116238,92.134,92.099,0.68173906]
[1772715315705,0.29116238,92.158,92.099,0.68173906]
[1772715315911,0.29089452,92.157,92.099,0.68173906]
[1772715316110,0.29089452,92.149,92.099,0.68173906]
[1772715316320,0.29089452,92.139,92.072,0.68173906]
[1772715316497,0.29089452,92.139,92.075,0.68173906]
[1772715316696,0.29089452,92.139,92.05,43.45451037]
[1772715316697,0.29089452,92.138,92.079,0.68173906]
[1772715319705,0.29089452,92.138,92.059,0.28432314]
[1772715319706,0.29048325,92.135,92.081,0.68328929]
[1772715319904,0.29048325,92.129,92.081,0.68328929]
[1772715320096,0.29048325,92.128,92.081,0.68328929]
[1772715320916,0.29023287,92.125,92.082,10.85988575]
[1772715321323,0.29023287,92.125,92.083,0.68328929]
[1772715323304,0.28432314,92.126,92.083,0.68328929]
[1772715323305,0.28973312,92.123,92.084,10.85964988]
[1772715323503,37.99227128,92.124,92.057,3.69383402]
[1772715323504,4.976427,92.12,92.085,0.68328929]
[1772715323708,0.28973312,92.119,92.085,0.68328929]
[1772715324099,0.28949772,92.118,92.051,27.15864898]
[1772715324311,0.28949772,92.099,92.053,0.68328929]
[1772715324821,0.28949772,92.109,92.053,0.68328929]
[1772715325314,0.28926581,92.107,92.055,0.68328929]
[1772715326604,5.26546277,92.09,92.055,0.68328929]
[1772715326802,0.28903577,92.089,92.055,0.68328929]
[1772715327606,0.28800584,92.087,92.055,0.68328929]
[1772715329024,0.28738197,92.085,92.055,0.68328929]
[1772715330423,11.14682679,92.084,92.055,0.68328929]
[1772715330603,0.28717691,92.083,92.049,10.86374913]
[1772715330804,0.28717691,92.079,92.048,10.86389709]
[1772715331005,0.28717691,92.079,92.048,11.56261812]
[1772715331220,0.28717691,92.079,92.049,0.69872103]
[1772715332022,10.85964988,92.084,92.049,0.69872103]
[1772715332822,4.976427,92.09,92.049,0.69872103]
[1772715333010,0.28656453,92.079,92.036,0.69872103]
[1772715333214,4.976427,92.06,92.036,0.69872103]
[1772715333413,0.28656453,92.063,92.036,0.69872103]
[1772715334233,4.976427,92.08,92.036,0.69872103]
[1772715334408,0.28636609,92.084,92.036,0.69872103]
[1772715334940,10.85976781,92.083,92.037,10.86519551]
[1772715335101,10.85976781,92.083,92.038,0.69872103]
[1772715335305,10.85915114,92.089,92.038,0.69872103]
[1772715335730,0.28615969,92.088,92.038,0.69872103]
[1772715335936,10.85915114,92.089,92.038,0.69872103]
[1772715337938,0.28723183,92.089,92.04,0.69872103]
[1772715338111,0.28723183,92.088,92.04,0.69872103]
[1772715339227,0.28622483,92.099,92.04,0.69872103]
[1772715339531,0.28622483,92.099,92.041,0.69872103]
[1772715340521,10.85799908,92.098,92.043,0.69872103]
[1772715341509,27.14429477,92.101,92.044,38.02529224]
[1772715341706,27.14429477,92.101,92.045,0.69872103]
[1772715342730,27.42978579,92.101,92.045,0.69872103]
[1772715343517,0.28515113,92.1,92.045,0.69872103]
[1772715345334,0.28448416,92.098,92.047,38.02405292]
[1772715345633,0.28448416,92.098,92.048,0.69872103]
[1772715348133,10.85811698,92.097,92.05,0.69872103]
[1772715348435,10.85811698,92.097,92.051,0.69872103]
[1772715350229,27.14180133,92.109,92.05,34.8]
[1772715350230,0.28335113,92.096,92.053,0.67359728]
[1772715351424,0.28432314,92.109,92.053,0.67359728]
[1772715351619,0.28303721,92.108,92.053,0.67359728]
[1772715352732,4.976427,92.1,92.055,0.67359728]
[1772715353042,0.28162635,92.098,92.052,0.67359728]
[1772715353225,0.28432314,92.099,92.052,11.5370223]
[1772715353226,0.28162635,92.089,92.052,11.5370223]
[1772715353742,0.28162635,92.088,92.051,34.8]
[1772715354326,0.28162635,92.088,92.046,10.86402028]
[1772715354850,0.28025339,92.085,92.046,10.86402028]
[1772715355349,0.28025339,92.079,92.046,10.86402028]
[1772715356648,0.28025339,92.079,92.043,0.67359728]
[1772715356966,0.27970875,92.069,92.035,0.67359728]
[1772715357634,38.01125132,92.078,92.037,0.67359728]
[1772715357635,0.27970875,92.077,92.037,0.67359728]
[1772715358926,0.27917649,92.075,92.039,0.67359728]
[1772715359128,0.27917649,92.074,92.039,0.67359728]
[1772715360445,10.86059342,92.076,92.039,0.67359728]
[1772715360841,11.13924589,92.076,92.039,0.67359728]
[1772715361040,0.27865247,92.075,92.041,0.67359728]
[1772715362327,0.27838714,92.069,92.03,0.67359728]
[1772715362534,0.27838714,92.059,92.029,0.67359728]
[1772715363042,0.27813383,92.057,92.029,0.67359728]
[1772715364142,0.27813383,92.057,92.021,0.67359728]
[1772715364653,0.27813383,92.057,92.02,10.86718467]
[1772715364654,0.27787638,92.049,92.013,0.67359728]
[1772715364958,0.27787638,92.049,92.013,11.54153743]
[1772715365257,0.28432314,92.065,92.014,0.67359728]
[1772715365652,10.86177307,92.066,92.014,0.67359728]
[1772715367059,0.2771415,92.066,92.016,0.67359728]
[1772715367357,0.2771415,92.059,92.016,0.67359728]
[1772715367536,0.2771415,92.068,92.016,0.67359728]
[1772715369152,0.2758693,92.066,92.018,0.67359728]
[1772715371156,10.86189105,92.065,92.02,0.67359728]
[1772715371364,0.27541916,92.064,92.02,0.67359728]
[1772715371658,10.86189105,92.065,92.02,0.67359728]
[1772715372046,10.86139153,92.07,92.02,0.67359728]
[1772715372446,10.86139153,92.07,92.021,0.67359728]
[1772715373542,10.86078532,92.075,92.023,0.67359728]
[1772715373746,0.27417942,92.074,92.023,0.67359728]
[1772715374458,0.27397165,92.069,92.023,0.67359728]
[1772715375662,0.27376672,92.067,92.025,0.67359728]
[1772715376869,0.27336745,92.065,92.027,0.67359728]
[1772715381373,0.27321772,92.063,92.029,0.64454518]
[1772715381670,0.27321772,92.059,92.021,0.64454518]
[1772715382057,0.27321772,92.059,92.024,0.64454518]
[1772715384081,0.27264056,92.057,92.018,10.86737835]
[1772715384370,0.27264056,92.057,92.017,0.64454518]
[1772715384371,0.27264056,92.049,92.017,0.64454518]
[1772715387072,0.27209028,92.047,92.012,0.64454518]
[1772715389263,10.86413315,92.046,92.014,0.65623936]
[1772715390574,0.26979991,92.045,92.014,0.65623936]
[1772715392780,11.13306779,92.044,92.014,0.65623936]
[1772715392980,0.2685566,92.051,92.016,0.65623936]
[1772715395162,0.26827649,92.049,92.016,0.65623936]
[1772715396676,0.26827649,92.049,92.017,0.65623936]
[1772715397769,0.26785853,92.047,92.017,0.65623936]
[1772715398881,0.26772314,92.046,92.011,3.52004483]
[1772715399080,0.26772314,92.029,92.011,2.86380547]
[1772715399382,0.26772314,92.029,92.001,0.70458118]
[1772715399887,10.86625809,92.028,92.001,0.70458118]
[1772715400466,38.03190332,92.028,92.001,0.70458118]
[1772715402367,0.28432314,92.037,92.001,0.70458118]
[1772715402764,4.98335353,92.06,92.002,10.86932892]
[1772715403084,8.67718755,92.07,92.005,0.70458118]
[1772715403279,4.98335353,92.07,92.005,0.70458118]
[1772715403782,0.28432314,92.066,92.005,0.70458118]
[1772715404084,0.14216157,92.066,92.005,0.70458118]
[1772715404589,0.28432314,92.064,92.007,0.70458118]
[1772715404781,0.28432314,92.059,92.007,0.70458118]
[1772715406990,4.98335353,92.05,92.009,0.70458118]
[1772715407184,4.98335353,92.05,91.982,34.8]
[1772715407185,0.28432314,92.049,91.988,27.17741656]
[1772715407493,0.28432314,92.049,91.989,0.70458118]
[1772715408382,0.28432314,92.049,91.99,34.8]
[1772715408687,0.28432314,92.049,91.991,0.70458118]
[1772715411390,0.28432314,92.047,91.993,0.70458118]
[1772715414412,4.98335353,92.05,91.992,38.04678666]
[1772715414413,0.28432314,92.045,91.995,0.70458118]
[1772715414613,0.28432314,92.039,91.995,0.70458118]
[1772715416419,0.28432314,92.037,91.995,0.70458118]
[1772715418018,0.28432314,92.035,91.995,0.70458118]
[1772715418596,0.28432314,92.035,91.997,0.70458118]
[1772715419410,10.86531357,92.036,91.997,0.70458118]
[1772715419616,10.86425118,92.045,91.997,0.70458118]
[1772715419795,10.86448725,92.043,91.997,0.70458118]
[1772715420106,38.02570537,92.043,91.999,0.70458118]
[1772715420524,4.98335353,92.03,91.999,0.70458118]
[1772715420920,4.98335353,92.04,91.999,0.70458118]
[1772715421503,0.28432314,92.039,91.999,0.70458118]
[1772715422504,0.28432314,92.037,91.999,0.70458118]
[1772715424218,0.28432314,92.037,92.001,0.70458118]
[1772715425421,0.28432314,92.037,92.003,0.70458118]
[1772715427733,0.28432314,92.047,92.005,0.70458118]
[1772715428429,10.86413315,92.046,92.005,0.70458118]
[1772715429127,0.28432314,92.045,92.005,0.70458118]
[1772715429317,0.28432314,92.045,91.97,0.70458118]
[1772715429518,0.28432314,92.045,91.971,0.70458118]
[1772715429519,0.28432314,92.029,91.971,0.70458118]
[1772715429726,10.86732087,92.019,91.973,0.70458118]
[1772715430030,0.28432314,92.018,91.973,0.70458118]
[1772715431611,0.28432314,92.009,91.973,0.70458118]
[1772715431811,0.28432314,92.007,91.973,0.70458118]
[1772715432517,0.28432314,92.007,91.975,0.70458118]
[1772715432713,10.86862011,92.008,91.975,0.70458118]
[1772715433308,11.15188022,92.017,91.975,0.70458118]
[1772715433923,11.15188022,92.017,91.977,0.70458118]
[1772715435502,11.15188022,92.017,91.979,0.70458118]
[1772715437030,38.32077292,92.017,91.979,0.70458118]
[1772715438118,38.03644978,92.017,91.981,0.70458118]
[1772715439833,0.28432314,92.016,91.981,0.70458118]
[1772715442608,10.86732087,92.019,91.983,0.70458118]
[1772715445027,0.28432314,92.026,91.985,0.70458118]
[1772715445531,4.98832108,92.01,91.978,0.70458118]
[1772715446310,4.98832108,92.0,91.964,0.70458118]
[1772715447112,38.04389177,91.999,91.964,0.70458118]
[1772715447518,10.86968336,91.999,91.966,0.70458118]
[1772715447930,48.28933577,92.029,91.966,0.70458118]
[1772715447931,0.28432314,92.019,91.966,0.70458118]
[1772715448521,4.98832108,92.0,91.966,0.70458118]
[1772715449634,38.04389177,91.999,91.966,0.70458118]
[1772715450441,10.86968336,91.999,91.966,0.70458118]
[1772715451645,4.98832108,92.0,91.966,0.70458118]
[1772715453544,38.04389177,91.999,91.966,0.70458118]
[1772715454447,38.04389177,91.999,91.964,10.87372482]
[1772715454448,10.86968336,91.999,91.968,0.70458118]
[1772715455738,0.28432314,92.008,91.97,0.70458118]
[1772715459441,0.28432314,92.006,91.971,10.87299257]
[1772715459643,0.28432314,92.006,91.972,0.70458118]
[1772715460833,4.98832108,92.0,91.972,0.70458118]
[1772715462452,10.86968336,91.999,91.972,0.70458118]
[1772715464530,0.28432314,92.004,91.972,0.70458118]
[1772715465444,4.98832108,92.0,91.972,0.70458118]
[1772715467428,10.8679114,92.014,91.974,0.70458118]
[1772715467745,5.66920777,92.02,91.974,0.70458118]
[1772715467746,38.02735795,92.039,91.974,0.70458118]
[1772715468145,0.28432314,92.038,91.974,0.70458118]
[1772715468653,38.02735795,92.039,91.974,0.70458118]
[1772715468849,0.28432314,92.038,91.974,0.70458118]
[1772715469045,0.28432314,92.036,91.976,0.70458118]
[1772715469566,4.98832108,92.02,91.976,0.70458118]
[1772715470652,0.28432314,92.036,91.976,0.70458118]
[1772715470653,0.28432314,92.029,91.976,0.70458118]
[1772715471143,4.98832108,92.02,91.978,0.70458118]
[1772715471550,0.28432314,92.027,91.978,0.70458118]
[1772715472159,4.98832108,92.02,91.978,0.70458118]
[1772715472452,0.28432314,92.019,91.978,0.70458118]
[1772715472652,4.98832108,92.01,91.978,0.70458118]
[1772715473263,10.86850199,92.009,91.978,0.70458118]
[1772715473954,4.98832108,92.0,91.978,0.70458118]
[1772715474156,38.03975697,92.009,91.978,0.70458118]
[1772715474345,38.03975697,92.009,91.979,11.57662806]
[1772715474549,38.03975697,92.009,91.98,0.70458118]
[1772715476653,38.03975697,92.009,91.974,10.87253116]
[1772715476959,38.03975697,92.009,91.975,0.70458118]
[1772715477548,4.98832108,92.0,91.966,10.87358371]
[1772715477748,4.98832108,92.0,91.967,0.70458118]
[1772715479159,10.86968336,91.999,91.969,0.70458118]
[1772715479666,38.04389177,91.999,91.969,0.70458118]
[1772715480963,4.98832108,92.02,91.971,0.70458118]
[1772715481153,38.02363983,92.048,91.972,0.70458118]
[1772715481353,6.81936698,92.049,91.972,0.70458118]
[1772715481743,6.81936698,92.049,91.974,0.70458118]
[1772715481944,16.53362482,92.07,91.979,0.70458118]
[1772715482145,4.98832108,92.09,91.981,0.70458118]
[1772715482369,4.98832108,92.08,91.982,0.70458118]
[1772715482546,4.9840795,92.08,91.982,0.70458118]
[1772715482751,4.9840795,92.08,91.985,0.70458118]
[1772715482945,38.29516165,92.079,91.99,0.98890432]
[1772715483145,0.28432314,92.069,91.993,0.70458118]
[1772715484353,4.9840795,92.06,91.993,0.70458118]
[1772715484665,0.28432314,92.067,91.996,0.70458118]
[1772715484862,10.86107402,92.072,91.999,0.70458118]
[1772715486569,0.28432314,92.078,92.002,0.70458118]
[1772715487365,27.15059894,92.079,92.002,0.70458118]
[1772715487566,4.82477569,92.121,92.008,0.70458118]
[1772715487769,0.28432314,92.109,92.014,0.84674275]
[1772715487951,0.28432314,92.109,92.016,0.70458118]
[1772715488286,0.28432314,92.106,92.017,0.70458118]
[1772715488454,0.28432314,92.106,92.018,0.70458118]
[1772715488647,3.69383402,92.107,92.019,0.70458118]
[1772715489171,0.28432314,92.106,92.019,0.70458118]
[1772715490068,0.28432314,92.104,92.022,0.70458118]
[1772715490252,0.28432314,92.104,92.025,0.70458118]
[1772715490582,0.28432314,92.099,92.027,0.70458118]
[1772715490745,4.9840795,92.09,92.028,0.98890432]
[1772715490944,4.9840795,92.08,92.029,0.70458118]
[1772715492781,10.86023957,92.079,92.031,0.70458118]
[1772715492949,4.9840795,92.07,92.031,0.70458118]
[1772715495361,0.28432314,92.076,92.033,0.70458118]
[1772715497273,4.9840795,92.07,92.033,0.70458118]
[1772715497654,38.01496703,92.069,92.033,0.70458118]
[1772715498367,38.01496703,92.069,92.035,0.70458118]
[1772715500063,0.64455483,92.059,91.995,0.28432314]
[1772715501085,0.28432314,92.068,91.995,0.28432314]
[1772715501257,0.64455483,92.067,91.995,0.28432314]
[1772715501988,0.28432314,92.065,91.999,0.70586058]
[1772715502173,0.64455483,92.064,91.999,0.70586058]
[1772715502575,0.28432314,92.065,91.999,0.70586058]
[1772715502873,11.5063279,92.066,92.002,0.70586058]
[1772715503880,0.64455483,92.065,92.002,0.70586058]
[1772715504261,0.64455483,92.063,92.005,0.70586058]
[1772715505172,10.86200903,92.064,92.005,0.70586058]
[1772715505661,10.86141915,92.069,92.005,0.70586058]
[1772715506474,10.86141915,92.069,92.006,38.04099731]
[1772715506666,10.86141915,92.069,92.008,0.70586058]
[1772715507570,0.64455483,92.068,92.01,0.70586058]
[1772715508865,0.6918692,92.066,92.012,0.68918882]
[1772715510568,0.6918692,92.066,92.013,34.8]
[1772715510875,0.6918692,92.066,92.014,0.68918882]
[1772715511181,38.01579283,92.067,92.017,0.68918882]
[1772715511182,0.6918692,92.064,92.017,0.68918882]
[1772715513685,0.6918692,92.062,92.019,0.68918882]
[1772715514986,0.6918692,92.068,92.019,0.68918882]
[1772715516568,0.6918692,92.066,92.021,0.68918882]
[1772715519462,0.6918692,92.064,92.023,0.68918882]
[1772715520675,10.86189105,92.065,92.023,0.68918882]
[1772715522176,0.6918692,92.082,92.025,0.68918882]
[1772715522580,0.6918692,92.082,92.027,0.68918882]
[1772715524282,0.6918692,92.08,92.029,0.68918882]
[1772715525576,0.6918692,92.08,92.031,0.68918882]
[1772715527205,0.6918692,92.078,92.033,0.68918882]
[1772715528976,0.6918692,92.078,92.032,35.71943916]
[1772715529804,0.69752808,92.076,92.032,35.71943916]
[1772715531106,0.69752808,92.076,92.033,0.69476176]
[1772715531407,0.69752808,92.059,92.032,8.55497463]
[1772715532199,0.69752808,92.057,92.025,10.86661233]
[1772715533987,0.69752808,92.057,92.025,11.56137409]
[1772715536899,38.01950943,92.058,92.026,0.69476176]
[1772715536900,0.69752808,92.055,92.026,0.69476176]
[1772715537415,0.69752808,92.061,92.026,0.69476176]
[1772715539011,0.69752808,92.061,92.025,10.86661233]
[1772715539012,0.69752808,92.061,92.028,0.69476176]
[1772715539211,10.86248099,92.06,92.028,0.69476176]
[1772715539394,0.69752808,92.059,92.028,0.69476176]
[1772715542210,0.69752808,92.057,92.03,0.69476176]
[1772715543701,10.86221679,92.063,92.03,0.69476176]
[1772715544425,0.69752808,92.067,92.032,0.69476176]
[1772715546617,0.69752808,92.067,92.034,0.69476176]
[1772715547132,0.69752808,92.066,92.011,0.69476176]
[1772715547296,0.69752808,92.066,92.013,0.69476176]
[1772715548233,0.69752808,92.059,92.013,0.69476176]
[1772715548434,0.28432314,92.049,91.99,61.97667816]
[1772715548652,0.69752808,92.037,92.002,10.86932892]
[1772715549439,0.69752808,92.037,92.001,11.56409496]
[1772715549818,0.69752808,92.037,92.002,0.69476176]
[1772715550416,0.69752808,92.058,92.002,0.69476176]
[1772715550623,0.69752808,92.058,92.005,0.28432314]
[1772715550822,0.69752808,92.058,92.006,0.69476176]
[1772715554526,10.86202763,92.064,92.009,0.69476176]
[1772715555636,10.86202763,92.064,92.011,0.69476176]
[1772715555829,11.55955571,92.064,92.013,0.69476176]
[1772715556042,0.69752808,92.063,92.013,0.69476176]
[1772715556937,10.862245,92.062,92.015,0.69476176]
[1772715557545,11.55977308,92.062,92.015,0.69476176]
[1772715559140,11.55977308,92.062,92.017,0.70530307]
[1772715559638,0.66271784,92.061,92.017,0.70530307]
[1772715561550,0.66271784,92.061,92.019,38.03562306]
[1772715561753,0.66271784,92.061,92.02,0.70530307]
[1772715562465,0.66271784,92.059,92.02,0.70530307]
[1772715564590,0.66271784,92.057,92.023,0.70530307]
[1772715565383,0.94704098,92.079,92.023,0.70530307]
[1772715565583,0.66271784,92.077,92.023,0.70530307]
[1772715567004,0.66271784,92.074,92.025,0.70530307]
[1772715568595,4.98332245,92.09,92.025,0.70530307]
[1772715568596,0.70701918,92.083,92.027,0.66175438]
[1772715568806,0.70701918,92.083,92.029,0.66175438]
[1772715569204,0.70701918,92.083,92.031,0.66175438]
[1772715569595,0.70701918,92.082,92.031,0.66175438]
[1772715570499,0.70701918,92.089,92.033,0.66175438]
[1772715570702,0.70701918,92.089,92.034,0.66175438]
[1772715571098,0.70701918,92.089,92.037,0.66175438]
[1772715573599,0.70701918,92.089,92.039,0.66175438]
[1772715574305,0.70701918,92.087,92.039,0.66175438]
[1772715576709,0.70701918,92.085,92.04,73.48869918]
[1772715577016,0.70701918,92.085,92.041,0.66175438]
[1772715579623,0.70701918,92.083,92.043,10.86448725]
[1772715579802,0.70701918,92.083,92.044,0.66175438]
[1772715581517,0.70701918,92.083,92.043,10.86448725]
[1772715581822,0.70701918,92.081,92.045,11.52600556]
[1772715582028,0.70701918,92.081,92.046,0.66175438]
[1772715582831,0.70701918,92.079,92.047,10.86401512]
[1772715583199,10.86012163,92.08,92.026,0.66175438]
[1772715583200,0.70701918,92.069,92.026,0.66175438]
[1772715583429,0.70701918,92.059,92.001,0.66175438]
[1772715583604,0.70701918,92.059,92.002,0.66175438]
[1772715583805,0.70701918,92.049,92.002,0.66175438]
[1772715585033,0.70701918,92.047,92.004,0.66175438]
[1772715585210,0.70701918,92.039,92.004,0.66175438]
[1772715586810,10.86507746,92.038,92.005,10.86897451]
[1772715587015,0.70701918,92.037,92.006,0.66175438]
[1772715587428,0.70701918,92.037,92.005,10.86897451]
[1772715589915,0.7275521,92.035,92.005,0.71876249]
[1772715594439,0.7275521,92.009,91.992,1e-08]
[1772715594740,0.28432314,92.023,91.958,27.18627676]
[1772715594741,0.7275521,91.999,91.971,0.71876249]
[1772715595116,0.7275521,92.006,91.973,0.71876249]
[1772715596704,0.14216157,92.023,91.972,38.05506023]
[1772715596705,0.7275521,92.004,91.975,0.71876249]
[1772715598445,0.7275521,92.009,91.977,0.71876249]
[1772715600243,0.7275521,92.007,91.979,0.71876249]
[1772715600840,11.59392827,92.027,91.981,0.71876249]
[1772715601064,10.86583761,92.032,91.983,0.71876249]
[1772715601212,5.66261911,92.054,91.984,0.71876249]
[1772715601417,27.14139921,92.111,91.99,0.71876249]
[1772715601618,4.98332245,92.11,91.995,0.71876249]
[1772715601835,4.98332245,92.09,91.998,0.71876249]
[1772715602035,0.28432314,92.089,91.999,0.71876249]
[1772715602232,0.28432314,92.089,91.97,4.82477569]
[1772715602233,4.98332245,92.06,92.001,0.71876249]
[1772715602739,0.28432314,92.059,92.001,0.71876249]
[1772715603320,0.7275521,92.058,92.001,0.71876249]
[1772715604320,38.01992243,92.057,92.002,38.04265123]
[1772715604543,0.7275521,92.049,92.003,0.71876249]
[1772715605418,0.7275521,92.049,92.004,0.71876249]
[1772715606542,0.7275521,92.067,92.006,0.86092406]
[1772715606748,0.7275521,92.066,92.007,0.71876249]
[1772715607219,0.7275521,92.066,92.008,3.69383402]
[1772715607422,0.7275521,92.087,92.01,0.71876249]
[1772715607630,0.7275521,92.087,92.013,0.71876249]
[1772715607836,0.7275521,92.087,92.016,0.86092406]
[1772715608036,0.7275521,92.087,92.018,0.71876249]
[1772715608238,0.7275521,92.087,92.019,0.71876249]
[1772715608624,0.7275521,92.085,92.022,0.71876249]
[1772715608930,0.7275521,92.085,92.025,0.71876249]
[1772715609339,0.7275521,92.085,92.027,0.71876249]
[1772715609737,0.7275521,92.083,92.029,0.71876249]
[1772715609948,0.7275521,92.083,92.031,0.71876249]
[1772715610148,10.85964988,92.084,92.032,0.71876249]
[1772715610149,0.7275521,92.079,92.032,0.71876249]
[1772715610359,0.7275521,92.079,92.032,2.30375459]
[1772715610525,0.7275521,92.079,92.034,0.71876249]
[1772715611144,0.7275521,92.079,92.033,1.58497488]
[1772715611843,0.7275521,92.069,92.033,1.58497488]
[1772715612049,0.7275521,92.049,91.996,0.71876249]
[1772715613935,0.7275521,92.039,91.997,10.86991967]
[1772715614634,0.7275521,92.039,91.994,1.51445127]
[1772715614830,38.02363983,92.048,91.976,10.87232247]
[1772715614831,0.7275521,92.028,91.976,10.87232247]
[1772715615034,0.7275521,92.019,91.976,10.87232247]
[1772715616041,0.7275521,92.009,91.971,10.87299257]
[1772715616545,0.7275521,92.009,91.972,0.71876249]
[1772715617553,0.7275521,92.009,91.971,10.87299257]
[1772715617758,0.7275521,92.007,91.969,0.71876249]
[1772715620151,0.73022063,92.027,91.971,0.70600247]
[1772715620538,0.73022063,92.025,91.971,0.70600247]
[1772715620980,0.73022063,92.025,91.97,37.33011177]
[1772715621150,0.73022063,92.019,91.97,37.33011177]
[1772715621655,0.73022063,92.009,91.971,34.8]
[1772715623153,0.73022063,92.007,91.972,10.87287435]
[1772715623372,0.73022063,92.007,91.973,0.07854544]
[1772715624134,0.73022063,92.007,91.972,10.87287435]
[1772715625533,0.73022063,92.005,91.965,0.08069389]
[1772715626464,0.73022063,91.999,91.962,10.87405667]
[1772715626954,0.73022063,91.999,91.963,0.08697839]
[1772715627958,0.73022063,91.997,91.963,0.08697839]